[Event "ONJK 2024 ABC"]
[Site "Velp, Netherlands"]
[Date "2024.08.05"]
[Round "5.17"]
[White "Hagen, Maurits"]
[Black "Lejzerowicz, Nathan"]
[Result "0-1"]
[TimeControl "90 minutes + 30 seconds"]
[WhiteElo "1654"]
[BlackElo "1668"]

1. d4 {[%clk 01:30:56]} {[%emt 00:00:04]} Nf6 {[%clk 01:30:46]} {[%emt
00:00:15]} 2. Bf4 {[%clk 01:31:19]} {[%emt 00:00:07]} c5 {[%clk 01:30:43]}
{[%emt 00:00:32]} 3. c3 {[%clk 01:31:35]} {[%emt 00:00:15]} d5 {[%clk
01:30:41]} {[%emt 00:00:32]} 4. e3 {[%clk 01:31:18]} {[%emt 00:00:47]} e6
{[%clk 01:30:02]} {[%emt 00:01:09]} 5. Nf3 {[%clk 01:31:36]} {[%emt 00:00:12]}
Bd6 {[%clk 01:29:51]} {[%emt 00:00:41]} 6. Bg3 {[%clk 01:30:46]} {[%emt
00:01:20]} O-O {[%clk 01:29:50]} {[%emt 00:00:32]} 7. Bd3 {[%clk 01:31:04]}
{[%emt 00:00:11]} b6 {[%clk 01:29:33]} {[%emt 00:00:46]} 8. Nbd2 {[%clk
01:30:29]} {[%emt 00:01:05]} Ba6 {[%clk 01:28:16]} {[%emt 00:01:48]} 9. Bxa6
{[%clk 01:29:43]} {[%emt 00:01:16]} Nxa6 {[%clk 01:28:38]} {[%emt 00:00:08]} 10.
Bxd6 {[%clk 01:29:59]} {[%emt 00:00:14]} Qxd6 {[%clk 01:28:37]} {[%emt
00:00:31]} 11. Ne5 {[%clk 01:30:25]} {[%emt 00:00:04]} Nb8 {[%clk 01:23:58]}
{[%emt 00:05:08]} 12. f4 {[%clk 01:29:13]} {[%emt 00:01:43]} Nc6 {[%clk
01:22:01]} {[%emt 00:02:27]} 13. g4 {[%clk 01:28:32]} {[%emt 00:01:11]} Nd7
{[%clk 01:21:24]} {[%emt 00:01:07]} 14. h4 {[%clk 01:28:09]} {[%emt 00:00:53]}
Ndxe5 {[%clk 01:19:47]} {[%emt 00:02:07]} 15. fxe5 {[%clk 01:28:26]} {[%emt
00:00:13]} Qd8 {[%clk 01:19:31]} {[%emt 00:00:46]} 16. Qc2 {[%clk 01:28:29]}
{[%emt 00:00:27]} Rc8 {[%clk 01:18:29]} {[%emt 00:01:33]} 17. g5 {[%clk
01:27:17]} {[%emt 00:01:42]} cxd4 {[%clk 01:17:54]} {[%emt 00:01:04]} 18. exd4
{[%clk 01:26:54]} {[%emt 00:00:53]} Nxd4 {[%clk 01:18:10]} {[%emt 00:00:14]} 19.
Qd3 {[%clk 01:23:51]} {[%emt 00:03:33]} Nf5 {[%clk 01:14:44]} {[%emt 00:03:55]}
20. O-O-O {[%clk 01:22:18]} {[%emt 00:02:04]} d4 {[%clk 01:13:40]} {[%emt
00:01:34]} 21. Ne4 {[%clk 01:21:43]} {[%emt 00:01:05]} dxc3 {[%clk 01:12:06]}
{[%emt 00:02:04]} 22. Nxc3 {[%clk 01:21:40]} {[%emt 00:00:33]} Qxd3 {[%clk
01:10:55]} {[%emt 00:01:40]} 23. Rxd3 {[%clk 01:21:34]} {[%emt 00:00:36]} Rfd8
{[%clk 01:08:25]} {[%emt 00:03:00]} 24. Rxd8+ {[%clk 01:20:26]} {[%emt
00:01:38]} Rxd8 {[%clk 01:05:18]} {[%emt 00:03:38]} 25. h5 {[%clk 01:18:00]}
{[%emt 00:02:55]} Kf8 {[%clk 01:02:06]} {[%emt 00:03:42]} 26. g6 {[%clk
01:16:38]} {[%emt 00:01:51]} fxg6 {[%clk 00:59:55]} {[%emt 00:02:42]} 27. hxg6
{[%clk 01:16:55]} {[%emt 00:00:13]} hxg6 {[%clk 00:58:53]} {[%emt 00:01:32]} 28.
Ne4 {[%clk 01:17:01]} {[%emt 00:00:24]} Ke7 {[%clk 00:56:41]} {[%emt 00:02:42]}
29. Rg1 {[%clk 01:15:34]} {[%emt 00:01:56]} Rd5 {[%clk 00:52:58]} {[%emt
00:04:13]} 30. Rxg6 {[%clk 01:15:12]} {[%emt 00:00:52]} Rxe5 {[%clk 00:52:51]}
{[%emt 00:00:37]} 31. Ng3 {[%clk 01:15:10]} {[%emt 00:00:32]} Kf7 {[%clk
00:52:01]} {[%emt 00:01:20]} 32. Rg4 {[%clk 01:14:44]} {[%emt 00:00:56]} Nxg3
{[%clk 00:51:36]} {[%emt 00:00:55]} 33. Rxg3 {[%clk 01:15:05]} {[%emt
00:00:10]} g5 {[%clk 00:51:29]} {[%emt 00:00:37]} 34. Kc2 {[%clk 01:14:42]}
{[%emt 00:00:53]} Kf6 {[%clk 00:50:46]} {[%emt 00:01:13]} 35. b4 {[%clk
01:14:19]} {[%emt 00:00:52]} a5 {[%clk 00:50:05]} {[%emt 00:01:11]} 36. a3
{[%clk 01:14:28]} {[%emt 00:00:21]} Re4 {[%clk 00:49:48]} {[%emt 00:00:47]} 37.
Kb3 {[%clk 01:14:44]} {[%emt 00:00:14]} axb4 {[%clk 00:49:34]} {[%emt
00:00:45]} 38. axb4 {[%clk 01:15:07]} {[%emt 00:00:07]} b5 {[%clk 00:49:44]}
{[%emt 00:00:20]} 0-1

[Event "ONJK 2024 ABC"]
[Site "Velp, Netherlands"]
[Date "2024.08.05"]
[Round "5.18"]
[White "Zhao, Nick"]
[Black "Peeters, Yumi"]
[Result "1-0"]
[TimeControl "90 minutes + 30 seconds"]
[WhiteElo "1836"]
[BlackElo "1671"]

1. d4 {[%clk 01:31:00]} d5 {[%clk 01:30:55]} {[%emt 00:00:06]} 2. c4 {[%clk
01:31:27]} {[%emt 00:00:02]} e6 {[%clk 01:31:17]} {[%emt 00:00:08]} 3. Nf3
{[%clk 01:31:55]} {[%emt 00:00:02]} Nf6 {[%clk 01:31:20]} {[%emt 00:00:27]} 4.
Nc3 {[%clk 01:32:22]} {[%emt 00:00:03]} c5 {[%clk 01:31:33]} {[%emt 00:00:17]}
5. cxd5 {[%clk 01:32:19]} {[%emt 00:00:33]} exd5 {[%clk 01:30:46]} {[%emt
00:01:17]} 6. Bg5 {[%clk 01:32:17]} {[%emt 00:00:31]} Be6 {[%clk 01:30:11]}
{[%emt 00:01:05]} 7. g3 {[%clk 01:25:33]} {[%emt 00:07:14]} Be7 {[%clk
01:29:59]} {[%emt 00:00:42]} 8. dxc5 {[%clk 01:24:00]} {[%emt 00:02:03]} Bxc5
{[%clk 01:29:36]} {[%emt 00:00:53]} 9. Bg2 {[%clk 01:23:55]} {[%emt 00:00:34]}
O-O {[%clk 01:28:22]} {[%emt 00:01:45]} 10. O-O {[%clk 01:23:36]} {[%emt
00:00:49]} Nc6 {[%clk 01:27:52]} {[%emt 00:01:00]} 11. Rc1 {[%clk 01:20:30]}
{[%emt 00:03:36]} Bb6 {[%emt 00:06:29]} 12. Qd3 {[%clk 01:17:12]} {[%emt
00:03:46]} h6 {[%clk 01:20:14]} {[%emt 00:02:11]} 13. Bxf6 {[%clk 01:12:54]}
{[%emt 00:04:48]} Qxf6 {[%clk 01:19:52]} {[%emt 00:00:52]} 14. e3 {[%clk
01:10:44]} {[%emt 00:02:40]} Rfd8 {[%clk 01:16:39]} {[%emt 00:03:43]} 15. Rfd1
{[%clk 01:02:16]} {[%emt 00:08:57]} Bf5 {[%clk 01:14:20]} {[%emt 00:02:50]} 16.
Qb5 {[%clk 01:00:08]} {[%emt 00:02:37]} d4 {[%clk 01:09:29]} {[%emt 00:05:21]}
17. Nd5 {[%clk 00:56:43]} {[%emt 00:03:56]} Qe6 {[%clk 01:09:06]} {[%emt
00:00:53]} 18. Nxd4 {[%emt 00:04:38]} Nxd4 {[%clk 01:07:47]} {[%emt 00:00:01]}
19. exd4 {[%clk 00:54:25]} {[%emt 00:00:27]} Be4 {[%clk 01:07:55]} {[%emt
00:00:22]} 20. Nxb6 {[%clk 00:45:54]} {[%emt 00:09:02]} Bxg2 {[%clk 01:07:05]}
{[%emt 00:01:20]} 21. Nxa8 {[%clk 00:37:18]} {[%emt 00:09:06]} Qe4 {[%clk
01:05:14]} {[%emt 00:02:21]} 22. Qe5 {[%clk 00:36:37]} {[%emt 00:01:10]} Qf3
{[%clk 01:04:44]} {[%emt 00:00:58]} 23. Qf4 {[%clk 00:36:37]} {[%emt 00:00:32]}
Qd5 {[%clk 01:05:07]} {[%emt 00:00:07]} 24. Nc7 {[%clk 00:36:39]} {[%emt
00:00:28]} Qf3 {[%clk 01:05:21]} {[%emt 00:00:16]} 25. Qxf3 {[%clk 00:36:10]}
{[%emt 00:01:00]} Bxf3 {[%clk 01:05:42]} {[%emt 00:00:08]} 26. Rd2 {[%clk
00:36:06]} {[%emt 00:00:34]} a6 {[%clk 01:05:51]} {[%emt 00:00:21]} 27. d5
{[%clk 00:36:01]} {[%emt 00:00:35]} Kf8 {[%clk 01:05:49]} {[%emt 00:00:30]} 28.
d6 {[%clk 00:36:08]} {[%emt 00:00:25]} Bc6 {[%clk 01:05:37]} {[%emt 00:00:42]}
29. Nxa6 {[%emt 00:03:49]} 1-0

[Event "ONJK 2024 ABC"]
[Site "Velp, Netherlands"]
[Date "2024.08.05"]
[Round "5.19"]
[White "Maes, Lander"]
[Black "Meert, Maarin"]
[Result "0-1"]
[TimeControl "90 minutes + 30 seconds"]
[WhiteElo "1645"]
[BlackElo "1811"]

1. e4 {[%clk 01:30:58]} {[%emt 00:00:01]} e6 {[%clk 01:30:55]} {[%emt
00:00:05]} 2. d4 {[%clk 01:31:19]} {[%emt 00:00:10]} d5 {[%clk 01:31:21]}
{[%emt 00:00:04]} 3. Nd2 {[%clk 01:28:31]} {[%emt 00:03:19]} c5 {[%clk
01:31:30]} {[%emt 00:00:20]} 4. c3 {[%clk 01:28:44]} {[%emt 00:00:17]} Nc6
{[%clk 01:31:43]} {[%emt 00:00:17]} 5. exd5 {[%clk 01:20:19]} {[%emt 00:08:55]}
exd5 {[%clk 01:31:53]} {[%emt 00:00:19]} 6. Ndf3 {[%clk 01:19:26]} {[%emt
00:01:24]} Bg4 {[%clk 01:31:15]} {[%emt 00:01:07]} 7. h3 {[%clk 01:19:47]}
{[%emt 00:00:10]} Bh5 {[%clk 01:31:31]} {[%emt 00:00:14]} 8. Be2 {[%clk
01:17:43]} {[%emt 00:02:34]} Nf6 {[%clk 01:30:14]} {[%emt 00:01:47]} 9. Be3
{[%clk 01:17:04]} {[%emt 00:01:10]} Qb6 {[%clk 01:26:17]} {[%emt 00:04:27]} 10.
b3 {[%clk 01:15:39]} {[%emt 00:01:55]} Be7 {[%clk 01:25:28]} {[%emt 00:01:19]}
11. Ne5 {[%clk 01:11:27]} {[%emt 00:04:42]} Bxe2 {[%clk 01:25:37]} {[%emt
00:00:20]} 12. Nxe2 {[%clk 01:11:50]} {[%emt 00:00:08]} O-O {[%clk 01:23:47]}
{[%emt 00:02:19]} 13. O-O {[%clk 01:09:04]} {[%emt 00:03:17]} Rad8 {[%clk
01:08:29]} {[%emt 00:15:47]} 14. Ng3 {[%clk 00:57:10]} {[%emt 00:12:25]} Nxe5
{[%clk 00:56:19]} {[%emt 00:12:40]} 15. dxe5 {[%clk 00:56:31]} {[%emt
00:01:09]} Ne4 {[%clk 00:56:08]} {[%emt 00:00:41]} 16. Nf5 {[%clk 00:31:06]}
{[%emt 00:25:55]} Qe6 {[%clk 00:39:15]} {[%emt 00:17:23]} 17. Qg4 {[%clk
00:09:29]} {[%emt 00:22:07]} g6 {[%clk 00:32:05]} {[%emt 00:07:40]} 18. Nh6+
{[%clk 00:04:13]} {[%emt 00:05:46]} Kh8 {[%clk 00:31:17]} {[%emt 00:01:18]} 19.
Qxe6 {[%clk 00:03:51]} {[%emt 00:00:53]} fxe6 {[%clk 00:31:41]} {[%emt
00:00:05]} 20. Rac1 {[%clk 00:03:41]} {[%emt 00:00:40]} d4 {[%clk 00:29:39]}
{[%emt 00:02:31]} 21. cxd4 {[%clk 00:03:58]} {[%emt 00:00:14]} cxd4 {[%clk
00:30:03]} {[%emt 00:00:06]} 22. Rc7 {[%clk 00:03:03]} {[%emt 00:01:25]} dxe3
{[%clk 00:29:52]} {[%emt 00:00:41]} 23. fxe3 {[%clk 00:01:31]} {[%emt
00:02:02]} Rxf1+ {[%clk 00:29:36]} {[%emt 00:00:45]} 24. Kxf1 {[%clk 00:01:45]}
{[%emt 00:00:17]} Rf8+ {[%clk 00:29:18]} {[%emt 00:00:48]} 25. Kg1 {[%clk
00:01:16]} {[%emt 00:01:00]} Bg5 {[%clk 00:19:23]} {[%emt 00:10:24]} 26. Nf7+
{[%clk 00:01:21]} {[%emt 00:00:25]} Kg8 {[%clk 00:19:33]} {[%emt 00:00:20]} 27.
Nxg5 {[%clk 00:01:45]} {[%emt 00:00:07]} Nxg5 {[%clk 00:19:55]} {[%emt
00:00:08]} 28. Rxb7 {[%clk 00:02:10]} {[%emt 00:00:05]} Rf7 {[%clk 00:20:16]}
{[%emt 00:00:08]} 29. Rb8+ {[%clk 00:02:04]} {[%emt 00:00:36]} Kg7 {[%clk
00:20:35]} {[%emt 00:00:11]} 30. Rb4 {[%clk 00:01:16]} {[%emt 00:01:19]} Rd7
{[%clk 00:20:23]} {[%emt 00:00:41]} 31. Rd4 {[%clk 00:01:11]} {[%emt 00:00:35]}
Rxd4 {[%clk 00:20:17]} {[%emt 00:00:37]} 32. exd4 {[%clk 00:01:36]} {[%emt
00:00:04]} Ne4 {[%clk 00:20:37]} {[%emt 00:00:09]} 33. b4 {[%clk 00:00:45]}
{[%emt 00:01:23]} Kf7 {[%clk 00:20:52]} {[%emt 00:00:14]} 34. a4 {[%clk
00:01:02]} {[%emt 00:00:13]} Ke7 {[%clk 00:21:01]} {[%emt 00:00:22]} 35. a5
{[%clk 00:00:54]} {[%emt 00:00:37]} Nc3 {[%clk 00:21:05]} {[%emt 00:00:26]} 36.
Kf2 {[%clk 00:01:13]} {[%emt 00:00:11]} a6 {[%clk 00:21:11]} {[%emt 00:00:24]}
37. Ke3 {[%clk 00:01:29]} {[%emt 00:00:14]} Nd5+ {[%clk 00:21:33]} {[%emt
00:00:08]} 38. Kd3 {[%clk 00:01:29]} {[%emt 00:00:30]} Nxb4+ {[%clk 00:21:24]}
{[%emt 00:00:39]} 39. Kc4 {[%clk 00:01:26]} {[%emt 00:00:33]} Nc6 {[%clk
00:21:25]} {[%emt 00:00:30]} 40. Kc5 {[%clk 00:01:00]} {[%emt 00:00:56]} Nxa5
{[%clk 00:21:46]} {[%emt 00:00:09]} 41. Kb6 {[%clk 00:01:08]} {[%emt 00:00:21]}
Nb3 {[%clk 00:21:44]} {[%emt 00:00:32]} 42. Kxa6 {[%clk 00:01:06]} {[%emt
00:00:33]} Nxd4 {[%clk 00:22:05]} {[%emt 00:00:08]} 43. Kb6 {[%clk 00:01:12]}
{[%emt 00:00:23]} Ne2 {[%clk 00:21:15]} {[%emt 00:01:21]} 44. h4 {[%clk
00:01:23]} {[%emt 00:00:19]} Nf4 {[%clk 00:21:37]} {[%emt 00:00:08]} 45. g4
{[%clk 00:00:49]} {[%emt 00:01:04]} Nd3 {[%clk 00:21:57]} {[%emt 00:00:10]} 46.
h5 {[%clk 00:01:01]} {[%emt 00:00:19]} Nxe5 {[%clk 00:22:08]} {[%emt 00:00:15]}
47. hxg6 {[%clk 00:01:05]} {[%emt 00:00:29]} hxg6 {[%clk 00:22:17]} {[%emt
00:00:20]} 48. g5 {[%clk 00:01:05]} {[%emt 00:00:30]} Nf7 {[%clk 00:22:38]}
{[%emt 00:00:09]} 49. Kc5 {[%clk 00:00:49]} {[%emt 00:00:41]} Nxg5 {[%clk
00:23:04]} {[%emt 00:00:10]} 50. Kd4 {[%emt 00:00:14]} Kd6 {[%clk 00:23:15]}
{[%emt 00:00:18]} 51. Ke3 {[%clk 00:01:14]} {[%emt 00:00:21]} e5 {[%clk
00:23:34]} {[%emt 00:00:12]} 52. Ke2 {[%clk 00:01:25]} {[%emt 00:00:19]} Kc5
{[%clk 00:23:52]} {[%emt 00:00:12]} 53. Ke3 {[%clk 00:01:07]} {[%emt 00:00:48]}
Kc4 {[%clk 00:24:14]} {[%emt 00:00:08]} 54. Ke2 {[%clk 00:01:22]} {[%emt
00:00:15]} Kc3 {[%clk 00:24:35]} {[%emt 00:00:09]} 55. Ke3 {[%clk 00:01:35]}
{[%emt 00:00:16]} e4 {[%clk 00:24:45]} {[%emt 00:00:21]} 56. Kf4 {[%clk
00:01:43]} {[%emt 00:00:22]} Kd2 {[%clk 00:24:57]} {[%emt 00:00:18]} 57. Kxg5
{[%clk 00:01:58]} {[%emt 00:00:15]} e3 {[%clk 00:25:21]} {[%emt 00:00:06]} 0-1

[Event "ONJK 2024 ABC"]
[Site "Velp, Netherlands"]
[Date "2024.08.05"]
[Round "5.20"]
[White "Zouridis, Christian"]
[Black "Van Ewijk, Abel"]
[Result "1-0"]
[TimeControl "90 minutes + 30 seconds"]
[WhiteElo "1713"]
[BlackElo "1484"]

1. e4 {[%clk 01:30:58]} {[%emt 00:00:02]} e5 {[%clk 01:30:59]} {[%emt
00:00:02]} 2. Nf3 {[%clk 01:31:09]} {[%emt 00:00:18]} Nc6 {[%clk 01:31:25]}
{[%emt 00:00:04]} 3. Bb5 {[%clk 01:31:26]} {[%emt 00:00:13]} Bc5 {[%clk
01:31:22]} {[%emt 00:00:33]} 4. Nc3 {[%clk 01:30:43]} {[%emt 00:01:13]} Nf6
{[%clk 01:30:55]} {[%emt 00:00:57]} 5. d3 {[%clk 01:30:21]} {[%emt 00:00:52]}
d6 {[%clk 01:29:42]} {[%emt 00:01:43]} 6. O-O {[%clk 01:28:58]} {[%emt
00:01:52]} O-O {[%clk 01:29:04]} {[%emt 00:01:08]} 7. h3 {[%clk 01:27:57]}
{[%emt 00:01:32]} h6 {[%clk 01:29:06]} {[%emt 00:00:28]} 8. a3 {[%clk
01:25:48]} {[%emt 00:02:39]} Bd7 {[%clk 01:27:47]} {[%emt 00:01:49]} 9. Na4
{[%clk 01:19:08]} {[%emt 00:07:11]} Na5 {[%clk 01:21:23]} {[%emt 00:06:53]} 10.
Bxd7 {[%clk 01:18:27]} {[%emt 00:01:11]} Nxd7 {[%clk 01:19:59]} {[%emt
00:01:54]} 11. b4 {[%clk 01:17:52]} {[%emt 00:01:05]} Bb6 {[%clk 01:09:49]}
{[%emt 00:10:41]} 12. bxa5 {[%clk 01:18:04]} {[%emt 00:00:18]} Bxa5 {[%clk
01:10:12]} {[%emt 00:00:06]} 13. Bd2 {[%clk 01:18:14]} {[%emt 00:00:20]} Bxd2
{[%clk 01:10:01]} {[%emt 00:00:41]} 14. Qxd2 {[%clk 01:18:38]} {[%emt
00:00:06]} Qe8 {[%clk 01:10:23]} {[%emt 00:00:07]} 15. Nc3 {[%clk 01:18:28]}
{[%emt 00:00:41]} Nf6 {[%clk 01:09:39]} {[%emt 00:01:14]} 16. Rab1 {[%clk
01:18:13]} {[%emt 00:00:45]} b6 {[%clk 01:09:44]} {[%emt 00:00:25]} 17. Nd5
{[%clk 01:17:10]} {[%emt 00:01:33]} Nxd5 {[%clk 01:09:30]} {[%emt 00:00:43]} 18.
exd5 {[%clk 01:17:34]} {[%emt 00:00:07]} Qa4 {[%clk 01:07:25]} {[%emt
00:02:35]} 19. Qc3 {[%clk 01:15:42]} {[%emt 00:02:22]} Rac8 {[%clk 01:05:00]}
{[%emt 00:02:54]} 20. Qb3 {[%clk 01:15:46]} {[%emt 00:00:27]} Qa5 {[%clk
01:04:50]} {[%emt 00:00:40]} 21. Rfc1 {[%clk 01:13:08]} {[%emt 00:03:08]} Rfe8
{[%clk 01:00:24]} {[%emt 00:04:56]} 22. a4 {[%clk 01:10:03]} {[%emt 00:03:35]}
Qa6 {[%clk 00:58:32]} {[%emt 00:02:22]} 23. Qb5 {[%clk 01:09:22]} {[%emt
00:01:11]} Qb7 {[%clk 00:57:55]} {[%emt 00:01:07]} 24. Qc6 {[%clk 01:09:24]}
{[%emt 00:00:28]} Qa6 {[%clk 00:56:41]} {[%emt 00:01:43]} 25. Nd2 {[%clk
01:07:38]} {[%emt 00:02:18]} Qa5 {[%clk 00:54:52]} {[%emt 00:02:18]} 26. Nb3
{[%clk 01:04:44]} {[%emt 00:03:24]} Qb4 {[%emt 00:03:33]} 27. Qc4 {[%clk
01:03:24]} Qxc4 {[%clk 00:52:16]} {[%emt 00:01:53]} 28. dxc4 {[%clk 01:03:47]}
{[%emt 00:00:06]} a5 {[%clk 00:52:30]} {[%emt 00:00:18]} 29. Nd2 {[%clk
01:03:21]} {[%emt 00:00:55]} f6 {[%clk 00:52:12]} {[%emt 00:00:48]} 30. Re1
{[%clk 01:02:43]} {[%emt 00:01:08]} Kf7 {[%clk 00:51:48]} {[%emt 00:00:53]} 31.
g4 {[%clk 01:02:56]} {[%emt 00:00:19]} g5 {[%clk 00:51:13]} {[%emt 00:01:04]}
32. Kg2 {[%clk 01:03:16]} {[%emt 00:00:10]} Rh8 {[%clk 00:51:33]} {[%emt
00:00:10]} 33. Kg3 {[%clk 01:03:26]} {[%emt 00:00:20]} h5 {[%clk 00:50:38]}
{[%emt 00:01:24]} 34. Nf1 {[%clk 01:01:28]} {[%emt 00:02:29]} hxg4 {[%clk
00:44:41]} {[%emt 00:06:28]} 35. hxg4 {[%clk 01:00:38]} {[%emt 00:01:19]} Rh4
{[%clk 00:44:25]} {[%emt 00:00:44]} 36. Nh2 {[%clk 01:00:33]} {[%emt 00:00:37]}
Rch8 {[%clk 00:43:54]} {[%emt 00:01:00]} 37. Nf3 {[%clk 01:00:53]} {[%emt
00:00:11]} R4h7 {[%clk 00:42:31]} {[%emt 00:01:52]} 38. Kg2 {[%clk 01:00:33]}
{[%emt 00:00:50]} Rg7 {[%clk 00:41:48]} {[%emt 00:01:13]} 39. Rh1 {[%clk
01:00:45]} {[%emt 00:00:19]} Rc8 {[%clk 00:41:27]} {[%emt 00:00:50]} 40. Rh6
{[%clk 01:00:29]} {[%emt 00:00:47]} Rg6 {[%clk 00:36:42]} {[%emt 00:05:13]} 41.
Rh7+ {[%clk 01:00:03]} {[%emt 00:00:58]} Rg7 {[%clk 00:36:36]} {[%emt
00:00:35]} 42. Rbh1 {[%clk 01:00:12]} {[%emt 00:00:20]} c6 {[%clk 00:36:36]}
{[%emt 00:00:32]} 43. Rh8 {[%clk 01:00:12]} {[%emt 00:00:30]} Rc7 {[%clk
00:35:41]} {[%emt 00:01:25]} 44. Rb8 {[%clk 00:59:30]} {[%emt 00:01:11]} cxd5
{[%clk 00:35:19]} {[%emt 00:00:52]} 45. cxd5 {[%clk 00:59:51]} {[%emt
00:00:09]} Rc4 {[%clk 00:35:06]} {[%emt 00:00:41]} 46. Rxb6 {[%clk 00:58:06]}
{[%emt 00:02:17]} Rxg4+ {[%clk 00:35:09]} {[%emt 00:00:27]} 47. Kf1 {[%clk
00:58:18]} {[%emt 00:00:18]} Rxa4 {[%clk 00:34:22]} {[%emt 00:01:18]} 48. Rxd6
{[%clk 00:58:35]} {[%emt 00:00:12]} Rc4 {[%clk 00:33:43]} {[%emt 00:01:08]} 49.
Rh6 {[%clk 00:57:17]} {[%emt 00:01:48]} Rg6 {[%clk 00:28:57]} {[%emt 00:05:17]}
50. Rxg6 {[%clk 00:57:39]} {[%emt 00:00:08]} Kxg6 {[%clk 00:29:20]} {[%emt
00:00:07]} 51. Nxe5+ {[%clk 00:57:57]} {[%emt 00:00:12]} Kg7 {[%clk 00:29:27]}
{[%emt 00:00:23]} 52. Nxc4 {[%clk 00:58:15]} {[%emt 00:00:12]} Kf7 {[%clk
00:29:48]} {[%emt 00:00:10]} 53. Nxa5 {[%clk 00:58:26]} {[%emt 00:00:19]} Ke7
{[%clk 00:30:08]} {[%emt 00:00:08]} 54. Nb7 {[%clk 00:58:47]} {[%emt 00:00:10]}
Ke8 {[%clk 00:30:15]} {[%emt 00:00:22]} 55. c4 {[%clk 00:59:05]} {[%emt
00:00:13]} 1-0